bitfinex-derivatives/quotes_BTCF0:USTF0_20250809
["timestamp","ask_amount","ask_price","bid_price","bid_amount"]
[1754754440316,0.53854956,116870.0,116860.0,1.66702524]
[1754754443423,0.2063776,116870.0,116860.0,1.66702524]
[1754754443819,0.53854956,116870.0,116860.0,1.9991972]
[1754754444023,0.2063776,116870.0,116860.0,1.9991972]
[1754754444223,0.53854956,116870.0,116860.0,1.9991972]
[1754754445120,0.53854956,116870.0,116860.0,2.19913472]
[1754754445621,0.53854956,116870.0,116860.0,1.86696276]
[1754754446930,0.53854956,116870.0,116860.0,1.5347908]
[1754754447132,0.53854956,116870.0,116860.0,1.86696276]
[1754754447629,0.53854956,116870.0,116860.0,0.78238994]
[1754754447830,0.53854956,116870.0,116860.0,1.67322514]
[1754754448032,0.53854956,116870.0,116860.0,1.58766994]
[1754754448330,0.53854956,116870.0,116860.0,1.67322514]
[1754754448730,0.2063776,116870.0,116860.0,1.67322514]
[1754754449030,0.2073776,116870.0,116860.0,1.67122514]
[1754754449233,0.53954956,116870.0,116860.0,1.67122514]
[1754754450322,0.53954956,116870.0,116860.0,1.82523553]
[1754754451231,0.2073776,116870.0,116860.0,1.82523553]
[1754754451432,0.53954956,116870.0,116860.0,1.82523553]
[1754754452628,0.53954956,116870.0,116860.0,1.67122514]
[1754754453328,0.2073776,116870.0,116860.0,1.67122514]
[1754754453528,0.53954956,116870.0,116860.0,1.67122514]
[1754754453730,0.2073776,116870.0,116860.0,1.67122514]
[1754754453931,0.53954956,116870.0,116860.0,1.67122514]
[1754754455437,0.2073776,116870.0,116860.0,1.67122514]
[1754754455638,0.53954956,116870.0,116860.0,1.67122514]
[1754754458238,0.2073776,116870.0,116860.0,1.67122514]
[1754754458538,0.53954956,116870.0,116860.0,2.0033971]
[1754754458837,0.2073776,116870.0,116860.0,2.0033971]
[1754754459040,0.1094276,116870.0,116860.0,2.0033971]
[1754754460239,0.1084276,116870.0,116860.0,2.0043971]
[1754754460741,0.1084276,116870.0,116860.0,1.34005318]
[1754754460940,0.1084276,116870.0,116860.0,2.0043971]
[1754754461741,0.1084276,116870.0,116860.0,2.0053971]
[1754754463140,0.1084276,116870.0,116860.0,2.15938353]
[1754754464444,0.1084276,116870.0,116860.0,1.49503961]
[1754754464646,0.1084276,116870.0,116860.0,2.15938353]
[1754754465245,0.0855476,116870.0,116860.0,2.15938353]
[1754754465747,0.1094876,116870.0,116860.0,2.15938353]
[1754754466141,0.0855476,116870.0,116860.0,2.15938353]
[1754754466446,0.0855487,116870.0,116860.0,2.41603973]
[1754754466646,0.3661217,116880.0,116870.0,0.1045087]
[1754754466847,0.3661217,116880.0,116870.0,0.79748066]
[1754754467347,0.3661217,116880.0,116870.0,0.95146709]
[1754754467751,0.69829366,116880.0,116870.0,0.95146709]
[1754754468248,0.69829366,116880.0,116870.0,0.61929513]
[1754754468450,0.69829366,116880.0,116870.0,0.95146709]
[1754754468744,0.69929366,116880.0,116870.0,0.95146709]
[1754754469152,0.69929366,116880.0,116870.0,0.61929513]
[1754754469343,0.69929366,116880.0,116870.0,0.95146709]
[1754754469849,0.3671217,116880.0,116870.0,0.95146709]
[1754754470246,0.69929366,116880.0,116870.0,0.59066709]
[1754754470446,0.69929366,116880.0,116870.0,0.95146709]
[1754754470645,0.74978366,116880.0,116870.0,0.95146709]
[1754754470846,0.78284366,116880.0,116870.0,0.95146709]
[1754754471045,0.4681817,116880.0,116870.0,0.59066709]
[1754754471250,0.80035366,116880.0,116870.0,0.61929513]
[1754754471451,0.80035366,116880.0,116870.0,0.95146709]
[1754754471949,0.80035366,116880.0,116870.0,0.61929513]
[1754754472151,0.4681817,116880.0,116870.0,0.95146709]
[1754754472352,0.80035366,116880.0,116870.0,0.95146709]
[1754754472552,0.80035366,116880.0,116870.0,0.59066709]
[1754754474352,0.80035366,116880.0,116870.0,0.25849513]
[1754754474554,0.80035366,116880.0,116870.0,0.59066709]
[1754754475254,0.80035366,116880.0,116870.0,0.95146709]
[1754754477955,0.80035366,116880.0,116870.0,0.61929513]
[1754754478253,0.80035366,116880.0,116870.0,0.95146709]
[1754754478447,0.4681817,116880.0,116870.0,0.95146709]
[1754754478954,0.80035366,116880.0,116870.0,0.95146709]
[1754754479449,0.4681817,116880.0,116870.0,0.95146709]
[1754754479643,0.80035366,116880.0,116870.0,0.95146709]
[1754754479846,0.76557366,116880.0,116870.0,0.61929513]
[1754754480046,0.3671217,116880.0,116870.0,0.79748066]
[1754754480254,0.3671217,116880.0,116870.0,0.95142097]
[1754754480458,0.4019017,116880.0,116870.0,0.61924901]
[1754754480757,0.4176117,116880.0,116870.0,0.95142097]
[1754754480959,0.4681817,116880.0,116870.0,0.95142097]
[1754754481351,0.80035366,116880.0,116870.0,0.95142097]
[1754754482048,0.4681817,116880.0,116870.0,0.95142097]
[1754754482251,0.80035366,116880.0,116870.0,0.61924901]
[1754754482456,0.80035366,116880.0,116870.0,0.95142097]
[1754754483455,0.4681817,116880.0,116870.0,0.95142097]
[1754754483651,0.80035366,116880.0,116870.0,0.95142097]
[1754754484352,1.13252562,116880.0,116870.0,0.95142097]
[1754754484558,0.80035366,116880.0,116870.0,0.95142097]
[1754754484758,0.80035366,116880.0,116870.0,0.61924901]
[1754754484958,0.80035366,116880.0,116870.0,0.95142097]
[1754754485158,0.80035366,116880.0,116870.0,0.61924901]
[1754754485360,0.4681817,116880.0,116870.0,0.95142097]
[1754754485555,0.80035366,116880.0,116870.0,0.95142097]
[1754754485962,0.4681817,116880.0,116870.0,0.95142097]
[1754754486162,1.13252562,116880.0,116870.0,0.95142097]
[1754754486661,1.13252562,116880.0,116870.0,0.96206031]
[1754754486856,1.13252562,116880.0,116870.0,1.04760861]
[1754754487061,1.13252562,116880.0,116870.0,1.05447861]
[1754754487568,1.49332562,116880.0,116870.0,0.97993031]
[1754754487762,1.13252562,116880.0,116870.0,0.97993031]
[1754754487959,0.4681817,116880.0,116870.0,0.97993031]
[1754754488463,1.13252562,116880.0,116870.0,1.06547861]
[1754754488865,1.49332562,116880.0,116870.0,0.96206031]
[1754754489263,1.49332562,116880.0,116870.0,0.96218031]
[1754754490163,1.99661758,116880.0,116870.0,0.96218031]
[1754754490360,1.99661758,116880.0,116870.0,0.93718031]
[1754754490765,1.99661758,116880.0,116870.0,0.80824]
[1754754491263,1.66444562,116880.0,116870.0,0.80824]
[1754754491459,0.2094857,116860.0,116850.0,0.64521066]
[1754754491655,0.54165766,116860.0,116850.0,1.1219587]
[1754754491857,0.54165766,116860.0,116850.0,1.45413066]
[1754754492660,0.54165766,116860.0,116850.0,1.45613066]
[1754754492868,0.54165766,116860.0,116850.0,1.0383958]
[1754754493069,0.54265766,116860.0,116850.0,1.37256776]
[1754754493963,0.54165766,116860.0,116850.0,1.34748776]
[1754754494167,0.87382962,116860.0,116850.0,1.34848776]
[1754754494469,0.87382962,116860.0,116850.0,1.28600486]
[1754754494658,0.87382962,116860.0,116850.0,1.28400486]
[1754754494858,0.87382962,116860.0,116850.0,1.28500486]
[1754754495162,0.54165766,116860.0,116850.0,1.28500486]
[1754754495969,0.2094857,116860.0,116850.0,1.28500486]
[1754754496462,0.54165766,116860.0,116850.0,1.28500486]
[1754754496968,0.2094857,116860.0,116850.0,1.28500486]
[1754754497170,0.2094857,116860.0,116850.0,0.9528329]
[1754754497171,0.54165766,116860.0,116850.0,0.9528329]
[1754754497369,0.54165766,116860.0,116850.0,1.43881469]
[1754754497769,0.2094857,116860.0,116850.0,1.43881469]
[1754754498072,0.54165766,116860.0,116850.0,1.28500486]
[1754754498967,0.54165766,116860.0,116850.0,0.9528329]
[1754754499168,0.54165766,116860.0,116850.0,1.28500486]
[1754754499471,0.87382962,116860.0,116850.0,1.19944196]
[1754754499671,0.87382962,116860.0,116850.0,1.28500506]
[1754754501471,0.87382962,116860.0,116850.0,0.9528331]
[1754754501972,0.87382962,116860.0,116850.0,1.28500506]
[1754754502161,0.87382962,116860.0,116850.0,1.43881489]
[1754754503073,0.87382962,116860.0,116850.0,1.10664293]
[1754754503274,0.87382962,116860.0,116850.0,1.43881489]
[1754754503473,0.2094857,116860.0,116850.0,1.10664293]
[1754754503674,0.54165766,116860.0,116850.0,1.43881489]
[1754754504980,0.2094857,116860.0,116850.0,1.43881489]
[1754754505284,0.2094857,116860.0,116850.0,1.79961489]
[1754754505475,0.54165766,116860.0,116850.0,1.79961489]
[1754754506275,0.54165766,116860.0,116850.0,1.46744293]
[1754754506478,0.54165766,116860.0,116850.0,1.79961489]
[1754754507180,0.2094857,116860.0,116850.0,1.79961489]
[1754754507380,0.54165766,116860.0,116850.0,1.79961489]
[1754754507587,0.2094857,116860.0,116850.0,1.79961489]
[1754754507782,0.54165766,116860.0,116850.0,1.79961489]
[1754754508282,0.2094857,116860.0,116850.0,1.79961489]
[1754754508580,0.54165766,116860.0,116850.0,1.79961489]
[1754754508782,0.54165766,116860.0,116850.0,1.46744293]
[1754754509078,0.54165766,116860.0,116850.0,1.79961489]
[1754754510079,0.54165766,116860.0,116850.0,1.43881489]
[1754754510274,0.54165766,116860.0,116850.0,1.79961489]
[1754754510978,0.54165766,116860.0,116850.0,1.64580506]
[1754754512179,0.54165766,116860.0,116850.0,1.3136331]
[1754754512375,0.54165766,116860.0,116850.0,1.64580506]
[1754754512776,0.54165766,116860.0,116850.0,1.3136331]
[1754754513079,0.54165766,116860.0,116850.0,1.64580506]
[1754754514682,0.54165766,116860.0,116850.0,1.3136331]
[1754754514882,0.54165766,116860.0,116850.0,1.64580506]
[1754754515379,0.54165766,116860.0,116850.0,1.28500506]
[1754754515584,0.54165766,116860.0,116850.0,1.64580506]
[1754754518280,0.54165766,116860.0,116850.0,1.3136331]
[1754754518483,0.54165766,116860.0,116850.0,1.79974608]
[1754754518887,0.2094857,116860.0,116850.0,1.79974608]
[1754754519087,0.54165766,116860.0,116850.0,1.79974608]
[1754754519282,0.54165766,116860.0,116850.0,1.64580506]
[1754754522186,0.54165766,116860.0,116850.0,1.3136331]
[1754754522375,0.54165766,116860.0,116850.0,1.64580506]
[1754754523187,0.54165766,116860.0,116850.0,1.3136331]
[1754754523486,0.2094857,116860.0,116850.0,1.64580506]
[1754754523681,0.54165766,116860.0,116850.0,1.64580506]
[1754754525288,0.54165766,116860.0,116850.0,1.3136331]
[1754754525479,0.54165766,116860.0,116850.0,1.64580506]
[1754754529187,0.54165766,116860.0,116850.0,1.3136331]
[1754754529485,0.54165766,116860.0,116850.0,1.64580506]
[1754754529887,0.2094857,116860.0,116850.0,1.64580506]
[1754754530089,0.54165766,116860.0,116850.0,1.64580506]
[1754754530387,0.54165766,116860.0,116850.0,1.3136331]
[1754754530586,0.2094857,116860.0,116850.0,1.64580506]
[1754754530788,0.54165766,116860.0,116850.0,1.64580506]
[1754754531286,0.87224962,116860.0,116850.0,0.42081]
[1754754531487,0.2079057,116860.0,116850.0,1.44037005]
[1754754531684,0.87224962,116860.0,116850.0,1.44037005]
[1754754531889,0.87224962,116860.0,116850.0,1.46511005]
[1754754532486,0.87324962,116860.0,116850.0,1.79628201]
[1754754533683,0.2089057,116860.0,116850.0,1.79628201]
[1754754534084,0.54107766,116860.0,116850.0,1.79528201]
[1754754536189,0.54107766,116860.0,116850.0,1.64125486]
[1754754537191,0.54107766,116860.0,116850.0,1.3090829]
[1754754537492,0.54107766,116860.0,116850.0,1.64125486]
[1754754538989,0.54107766,116860.0,116850.0,1.3090829]
[1754754539187,0.54107766,116860.0,116850.0,1.64125486]
[1754754540291,0.2089057,116860.0,116850.0,1.64125486]
[1754754540493,0.54107766,116860.0,116850.0,1.64125486]
[1754754540992,0.2089057,116860.0,116850.0,1.64125486]
[1754754541192,0.54107766,116860.0,116850.0,1.3079229]
[1754754541394,0.54107766,116860.0,116850.0,1.64009486]
[1754754541982,0.54107766,116860.0,116850.0,1.3079229]
[1754754542186,0.54107766,116860.0,116850.0,1.64009486]
[1754754542782,0.54107766,116860.0,116850.0,1.3079229]
[1754754542987,0.54107766,116860.0,116850.0,1.64009486]
[1754754543187,0.0865557,116860.0,116850.0,1.97226682]
[1754754543592,0.25460691,116870.0,116860.0,0.03061]
[1754754543786,0.08349931,116870.0,116860.0,1.16719932]
[1754754546294,0.08349931,116870.0,116860.0,1.23397373]
[1754754547196,0.08349931,116870.0,116860.0,1.23697373]
[1754754550502,0.08349931,116870.0,116860.0,0.57262981]
[1754754550702,0.08349931,116870.0,116860.0,1.23697373]
[1754754553515,0.08349931,116870.0,116860.0,0.57262981]
[1754754553716,0.08349931,116870.0,116860.0,1.23697373]
[1754754553920,0.10662931,116870.0,116860.0,1.23697373]
[1754754554113,0.10662931,116870.0,116860.0,1.39098601]
[1754754554515,0.43880127,116870.0,116860.0,1.39098601]
[1754754555015,0.43880127,116870.0,116860.0,1.23697373]
[1754754555618,0.43880127,116870.0,116860.0,0.57262981]
[1754754555918,0.43880127,116870.0,116860.0,1.23697373]
[1754754556113,0.53847127,116870.0,116860.0,0.90480177]
[1754754556320,0.53847127,116870.0,116860.0,0.51926177]
[1754754556618,0.53847127,116870.0,116860.0,0.54396177]
[1754754557220,0.53847127,116870.0,116860.0,0.21178981]
[1754754557517,0.53847127,116870.0,116860.0,0.54396177]
[1754754558119,0.53847127,116870.0,116860.0,0.12623441]
[1754754558321,0.53847127,116870.0,116860.0,0.45840637]
[1754754559012,0.53847127,116870.0,116860.0,0.61241865]
[1754754560116,0.53847127,116870.0,116860.0,0.69797415]
[1754754561016,0.53847127,116870.0,116860.0,0.61241865]
[1754754561721,0.20629931,116870.0,116860.0,0.58771865]
[1754754561921,0.53847127,116870.0,116860.0,0.58771865]
[1754754562121,0.53847127,116870.0,116860.0,0.12623441]
[1754754562424,0.53847127,116870.0,116860.0,0.45840637]
[1754754562722,0.53847127,116870.0,116860.0,0.54396177]
[1754754562925,0.53847127,116870.0,116860.0,0.61241865]
[1754754563117,0.53847127,116870.0,116860.0,0.28024669]
[1754754563518,0.53847127,116870.0,116860.0,0.61241865]
[1754754564121,0.20629931,116870.0,116860.0,0.61241865]
[1754754564320,0.20629931,116870.0,116860.0,0.69797405]
[1754754564521,0.53847127,116870.0,116860.0,0.69797405]
[1754754564721,0.20629931,116870.0,116860.0,0.69797405]
[1754754564924,0.53847127,116870.0,116860.0,0.69797405]
[1754754568325,0.53847127,116870.0,116860.0,0.61241865]
[1754754568931,0.20629931,116870.0,116860.0,0.69797415]
[1754754569132,0.53847127,116870.0,116860.0,0.69797415]
[1754754570820,0.20629931,116870.0,116860.0,0.69797415]
[1754754571022,0.53847127,116870.0,116860.0,1.39094611]
[1754754571726,0.53847127,116870.0,116860.0,1.23693383]
[1754754572320,0.53847127,116870.0,116860.0,0.21178991]
[1754754572528,0.53847127,116870.0,116860.0,0.87613383]
[1754754573129,0.20629931,116870.0,116860.0,0.87613383]
[1754754573533,0.53847127,116870.0,116860.0,0.54396187]
[1754754575436,0.20629931,116870.0,116860.0,0.54396187]
[1754754575734,0.53847127,116870.0,116860.0,0.54396187]
[1754754580033,0.53847127,116870.0,116860.0,0.21178991]
[1754754580237,0.53847127,116870.0,116860.0,0.54396187]
[1754754582139,0.20629931,116870.0,116860.0,0.54396187]
[1754754582341,0.53847127,116870.0,116860.0,0.54396187]
[1754754583139,0.20629931,116870.0,116860.0,0.54396187]
[1754754583441,0.20629931,116870.0,116860.0,0.21178991]
[1754754583839,0.53847127,116870.0,116860.0,0.54396187]
[1754754584034,0.20629931,116870.0,116860.0,0.54396187]
[1754754584240,0.53847127,116870.0,116860.0,0.54396187]
[1754754584439,0.53847127,116870.0,116860.0,0.57258991]
[1754754584636,0.53847127,116870.0,116860.0,0.54396187]
[1754754589243,0.20629931,116870.0,116860.0,0.90476187]
[1754754589444,0.53847127,116870.0,116860.0,0.90476187]
[1754754589744,0.20629931,116870.0,116860.0,0.90476187]
[1754754590042,0.53847127,116870.0,116860.0,1.23693383]
[1754754594043,0.08349931,116870.0,116860.0,1.23693383]
[1754754594442,0.10827931,116870.0,116860.0,1.23693383]
[1754754594636,0.08349931,116870.0,116860.0,1.23693383]
[1754754596046,0.08349931,116870.0,116860.0,1.43687135]
[1754754597146,0.08349931,116870.0,116860.0,1.23693383]
[1754754598046,0.08349931,116870.0,116860.0,0.57258991]
[1754754598247,0.08349931,116870.0,116860.0,1.43687135]
[1754754598847,0.08349931,116870.0,116860.0,1.79767135]
[1754754599049,0.08349931,116870.0,116860.0,1.13332743]
[1754754599249,0.10827931,116870.0,116860.0,1.79767135]
[1754754600949,0.10827931,116870.0,116860.0,1.59773383]
[1754754601449,0.08349931,116870.0,116860.0,1.59773383]
[1754754601754,0.2814138,116880.0,116870.0,0.1389685]
[1754754601755,0.0855451,116880.0,116870.0,0.1389685]
[1754754601940,0.4701127,116890.0,116880.0,0.1389612]
[1754754602146,0.80228466,116890.0,116880.0,0.80330512]
[1754754602450,0.80228466,116890.0,116880.0,0.95725389]
[1754754603849,0.4701127,116890.0,116880.0,0.95725389]
[1754754604151,0.80228466,116890.0,116880.0,0.95725389]
[1754754604656,0.80428466,116890.0,116880.0,0.95725389]
[1754754606551,0.80428466,116890.0,116880.0,0.29290997]
[1754754606850,0.80428466,116890.0,116880.0,0.62508193]
[1754754607050,0.4721127,116890.0,116880.0,0.62508193]
[1754754607252,0.80428466,116890.0,116880.0,0.62508193]
[1754754607451,0.3010315,116890.0,116880.0,0.95725389]
[1754754607641,0.2851915,116890.0,116880.0,1.31805389]
[1754754607846,0.0921342,116890.0,116880.0,1.31805389]
[1754754608539,0.1155342,116890.0,116880.0,1.31805389]
[1754754610947,0.2160142,116890.0,116880.0,1.31547389]
[1754754611154,0.54818616,116890.0,116880.0,1.31547389]
[1754754611748,0.2160142,116890.0,116880.0,0.65112997]
[1754754611953,0.2160142,116890.0,116880.0,1.31547389]
[1754754612356,0.1662342,116890.0,116880.0,1.31547389]
[1754754612654,0.1662342,116890.0,116880.0,0.65112997]
[1754754612852,0.1662342,116890.0,116880.0,1.31547389]
[1754754613253,0.1998242,116890.0,116880.0,1.31547389]
[1754754613454,0.2160142,116890.0,116880.0,1.31547389]
[1754754613655,0.2160142,116890.0,116880.0,0.65112997]
[1754754613855,0.2160142,116890.0,116880.0,1.31547389]
[1754754615755,0.2160142,116890.0,116880.0,0.95467389]
[1754754615947,0.2160142,116890.0,116880.0,1.31547389]
[1754754616954,0.54818616,116890.0,116880.0,1.31547389]
[1754754617755,0.2160142,116890.0,116880.0,1.31547389]
[1754754618054,0.2160142,116890.0,116880.0,0.65112997]
[1754754618250,0.54818616,116890.0,116880.0,1.31547389]
[1754754618954,0.2160142,116890.0,116880.0,1.31547389]
[1754754619953,0.54818616,116890.0,116880.0,1.31547389]
[1754754622757,0.54818616,116890.0,116880.0,0.95467389]
[1754754623059,0.54818616,116890.0,116880.0,1.31547389]
[1754754623661,0.54818616,116890.0,116880.0,0.65112997]
[1754754623861,0.54818616,116890.0,116880.0,1.31547389]
[1754754625862,0.54818616,116890.0,116880.0,0.65112997]
[1754754626054,0.54818616,116890.0,116880.0,0.51474877]
[1754754626263,1.23655812,116890.0,116880.0,0.15394877]
[1754754626561,0.2094212,116880.0,116870.0,2.18453752]
[1754754626857,0.87376512,116880.0,116870.0,2.18453752]
[1754754627060,0.87376512,116880.0,116870.0,2.51670948]
[1754754627261,0.87376512,116880.0,116870.0,2.31677196]
[1754754627460,0.87376512,116880.0,116870.0,2.32130196]
[1754754628560,1.23456512,116880.0,116870.0,1.98913]
[1754754628760,1.01309539,116880.0,116870.0,1.98913]
[1754754630255,1.01309539,116880.0,116870.0,2.0746787]
[1754754630461,1.01309539,116880.0,116870.0,1.98913]
[1754754631961,1.01309539,116880.0,116870.0,2.14307877]
[1754754632364,1.01309539,116880.0,116870.0,0.15847877]
[1754754632563,1.01309539,116880.0,116870.0,0.98076877]
[1754754635370,1.01309539,116880.0,116870.0,0.18120877]
[1754754635569,1.01309539,116880.0,116870.0,0.98036877]
[1754754636172,0.65229539,116880.0,116870.0,0.98036877]
[1754754636471,1.01309539,116880.0,116870.0,0.98036877]
[1754754636671,1.01509539,116880.0,116870.0,0.98036877]
[1754754638373,1.01509539,116880.0,116870.0,1.09035727]
[1754754638570,0.2114212,116880.0,116870.0,1.09035727]
[1754754638975,0.5722212,116880.0,116870.0,1.00480877]
[1754754639474,0.5712212,116880.0,116870.0,1.00480877]
[1754754639678,0.5702212,116880.0,116870.0,1.00480877]
[1754754640175,0.5702212,116880.0,116870.0,0.85086]
[1754754640578,0.2094212,116880.0,116870.0,0.9364085]
[1754754641475,0.5702212,116880.0,116870.0,0.9364085]
[1754754641674,0.2094212,116880.0,116870.0,0.85086]
[1754754641877,0.5702212,116880.0,116870.0,0.85086]
[1754754643281,0.2094212,116880.0,116870.0,0.9364085]
[1754754643472,0.5702212,116880.0,116870.0,0.9364085]
[1754754643672,0.2094212,116880.0,116870.0,0.9364085]
[1754754643872,0.5702212,116880.0,116870.0,0.85086]
[1754754644476,0.2094212,116880.0,116870.0,0.9364085]
[1754754644778,0.2094212,116880.0,116870.0,1.37928269]
[1754754645282,0.2094212,116880.0,116870.0,1.29373419]
[1754754645481,0.5702212,116880.0,116870.0,0.85086]
[1754754645777,0.2094212,116880.0,116870.0,0.85086]
[1754754645982,0.5702212,116880.0,116870.0,0.85086]
[1754754646383,0.2094212,116880.0,116870.0,0.85086]
[1754754646578,0.2094212,116880.0,116870.0,1.09035727]
[1754754647082,0.65229539,116880.0,116870.0,1.09035727]
[1754754647486,0.2094212,116880.0,116870.0,1.09035727]
[1754754648084,0.2094212,116880.0,116870.0,1.00480877]
[1754754648583,0.65229539,116880.0,116870.0,1.00480877]
[1754754648783,1.01309539,116880.0,116870.0,0.17667877]
[1754754649084,1.01309539,116880.0,116870.0,0.82185]
[1754754649587,1.01309539,116880.0,116870.0,0.82617]
[1754754649786,1.01409539,116880.0,116870.0,0.82617]
[1754754650787,1.23557986,116880.0,116870.0,0.82617]
[1754754651287,1.23657986,116880.0,116870.0,0.82617]
[1754754651684,1.23857986,116880.0,116870.0,0.82717]
[1754754652387,1.23557986,116880.0,116870.0,0.82617]
[1754754652588,1.23657986,116880.0,116870.0,0.82617]
[1754754654492,1.23657986,116880.0,116870.0,0.82185]
[1754754654788,1.23657986,116880.0,116870.0,0.82617]
[1754754658690,1.23657986,116880.0,116870.0,0.98011877]
[1754754658893,1.23657986,116880.0,116870.0,1.00455877]
[1754754659392,0.87577986,116880.0,116870.0,1.3367381]
[1754754659895,1.23657986,116880.0,116870.0,1.3367381]
[1754754661388,0.5722212,116880.0,116870.0,1.3367381]
[1754754661698,0.1616412,116880.0,116870.0,1.7830861]
[1754754661899,0.1220012,116880.0,116870.0,1.7830861]
[1754754662200,0.1109412,116880.0,116870.0,1.7830861]
[1754754662591,0.1109412,116880.0,116870.0,1.4222861]
[1754754662795,0.1551812,116880.0,116870.0,1.7830861]
[1754754663107,0.1541812,116880.0,116870.0,1.4222861]
[1754754663397,0.48636053,116880.0,116870.0,1.4222861]
[1754754663998,0.48636053,116880.0,116870.0,1.7830861]
[1754754664498,0.48636053,116880.0,116870.0,1.62913733]
[1754754666401,0.53833053,116880.0,116870.0,1.18278933]
[1754754666600,0.53833053,116880.0,116870.0,0.85061]
[1754754666799,0.53833053,116880.0,116870.0,1.18278933]
[1754754669498,0.53833053,116880.0,116870.0,1.26833733]
[1754754670202,0.53833053,116880.0,116870.0,0.85061]
[1754754670402,0.53833053,116880.0,116870.0,1.18278933]
[1754754670901,0.53833053,116880.0,116870.0,1.3367381]
[1754754671101,0.53833053,116880.0,116870.0,1.00455877]
[1754754671296,0.53833053,116880.0,116870.0,1.3367381]
[1754754672303,0.53833053,116880.0,116870.0,1.422286]
[1754754673804,0.53833053,116880.0,116870.0,1.3367381]
[1754754675308,0.53833053,116880.0,116870.0,1.422286]
[1754754676005,0.53833053,116880.0,116870.0,1.09010667]
[1754754676207,0.53833053,116880.0,116870.0,1.422286]
[1754754677506,0.53833053,116880.0,116870.0,1.3367381]
[1754754680506,1.23130986,116880.0,116870.0,0.16942877]
[1754754680805,1.23130986,116880.0,116870.0,0.97498877]
[1754754681010,1.23130986,116880.0,116870.0,0.98471877]
[1754754681402,0.5669512,116880.0,116870.0,0.98471877]
[1754754681709,1.23130986,116880.0,116870.0,0.98471877]
[1754754681909,1.23130986,116880.0,116870.0,1.00822877]
[1754754682808,1.23230986,116880.0,116870.0,1.00822877]
[1754754683009,0.5679512,116880.0,116870.0,1.00822877]
[1754754683311,1.23230986,116880.0,116870.0,1.3404081]
[1754754683502,1.23330986,116880.0,116870.0,1.3404081]
[1754754683700,0.90113053,116880.0,116870.0,1.3404081]
[1754754685105,0.88583053,116880.0,116870.0,1.3404081]
[1754754685314,0.90113053,116880.0,116870.0,1.18645933]
[1754754686112,0.90113053,116880.0,116870.0,1.3404081]
[1754754686607,0.5689512,116880.0,116870.0,1.00822877]
[1754754687012,1.01177879,116880.0,116870.0,0.85428]
[1754754687506,1.01077879,116880.0,116870.0,0.85428]
[1754754688011,0.0865412,116880.0,116870.0,1.74345549]
[1754754688402,0.1096412,116880.0,116870.0,1.74345549]
[1754754688608,0.1742212,116880.0,116870.0,1.74345549]
[1754754688802,0.2051212,116880.0,116870.0,1.74345549]
[1754754689417,0.2051212,116880.0,116870.0,1.3006279]
[1754754689612,0.64794879,116880.0,116870.0,1.21508]
[1754754692818,0.2051212,116880.0,116870.0,1.21508]
[1754754693017,0.64794879,116880.0,116870.0,1.21508]
[1754754694110,0.64794879,116880.0,116870.0,1.19157]
[1754754694314,0.2051212,116880.0,116870.0,0.82104]
[1754754694522,0.64794879,116880.0,116870.0,0.82978]
[1754754694724,1.00874879,116880.0,116870.0,0.82978]
[1754754695019,0.64794879,116880.0,116870.0,0.85329]
[1754754695414,1.00974879,116880.0,116870.0,0.85329]
[1754754695614,1.01074879,116880.0,116870.0,0.85329]
[1754754695814,0.5679212,116880.0,116870.0,0.85329]
[1754754696020,1.01074879,116880.0,116870.0,0.85329]
[1754754697216,1.01074879,116880.0,116870.0,0.82978]
[1754754698315,1.01074879,116880.0,116860.0,0.38441]
[1754754698316,0.2054479,116870.0,116860.0,0.38441]
[1754754698519,0.64827549,116870.0,116860.0,1.2981652]
[1754754698921,0.2054479,116870.0,116860.0,1.2981652]
[1754754699120,0.2054479,116870.0,116860.0,1.81047047]
[1754754699321,0.2054479,116870.0,116860.0,1.36764288]
[1754754699521,0.1900779,116870.0,116860.0,1.81047047]
[1754754699722,0.0855479,116870.0,116860.0,1.81047047]
[1754754700022,0.0855479,116870.0,116860.0,1.96441924]
[1754754701424,0.0855479,116870.0,116860.0,1.96541924]
[1754754701628,0.0855479,116870.0,116860.0,1.52359165]
[1754754701924,0.0855479,116870.0,116860.0,1.96641924]
[1754754702219,0.0855479,116870.0,116860.0,1.52359165]
[1754754702422,0.1099879,116870.0,116860.0,1.52359165]
[1754754702726,0.1099879,116870.0,116860.0,1.96641924]
[1754754704624,0.1421079,116870.0,116860.0,1.96641924]
[1754754704825,0.1904379,116870.0,116860.0,1.96641924]
[1754754705326,0.2054479,116870.0,116860.0,1.96641924]
[1754754705525,0.2054479,116870.0,116860.0,1.81147047]
[1754754706531,0.2054479,116870.0,116860.0,1.81047047]
[1754754708632,0.53759402,116870.0,116860.0,2.03193512]
[1754754709631,0.52222402,116870.0,116860.0,2.03193512]
[1754754710432,0.49010402,116870.0,116860.0,2.03193512]
[1754754710634,0.1429479,116870.0,116860.0,2.03193512]
[1754754710833,0.47509402,116870.0,116860.0,2.03193512]
[1754754711033,0.45205402,116870.0,116860.0,2.03193512]
[1754754711535,0.0855479,116870.0,116860.0,2.03193512]
[1754754712127,0.0855479,116870.0,116860.0,2.03293512]
[1754754712330,0.0855479,116870.0,116860.0,2.03393512]
[1754754713030,0.0855479,116870.0,116860.0,2.53393512]
[1754754713231,0.0855479,116870.0,116860.0,2.73387264]
[1754754714438,0.0855479,116870.0,116860.0,2.53393512]
[1754754716737,0.0855479,116870.0,116860.0,2.73387264]
[1754754719133,0.0855479,116870.0,116860.0,2.53393512]
[1754754719637,0.0855479,116870.0,116860.0,2.68794168]
[1754754719838,0.1099879,116870.0,116860.0,2.02364944]
[1754754720038,0.1099879,116870.0,116860.0,2.68794168]
[1754754720241,0.44213402,116870.0,116860.0,2.68794168]
[1754754720842,0.44213402,116870.0,116860.0,2.35579556]
[1754754721041,0.44213402,116870.0,116860.0,2.35219556]
[1754754721242,0.47425402,116870.0,116860.0,2.35219556]
[1754754722039,0.47425402,116870.0,116860.0,2.35119556]
[1754754722240,0.44213402,116870.0,116860.0,1.21740944]
[1754754722441,0.53759402,116870.0,116860.0,2.35099556]
[1754754722642,0.53759402,116870.0,116860.0,1.93329424]
[1754754722845,0.53759402,116870.0,116860.0,1.93361424]
[1754754723043,0.53759402,116870.0,116860.0,2.1117538]
[1754754723543,0.53759402,116870.0,116860.0,1.27960768]
[1754754724052,0.2054479,116870.0,116860.0,0.91880768]
[1754754724250,0.53759402,116870.0,116860.0,0.91880768]
[1754754725348,0.53759402,116870.0,116860.0,1.2509538]
[1754754725647,0.53859402,116870.0,116860.0,1.2519538]
[1754754726048,0.2064479,116870.0,116860.0,1.2519538]
[1754754726248,0.53859402,116870.0,116860.0,1.2519538]
[1754754727049,0.53859402,116870.0,116860.0,1.2289938]
[1754754727343,0.53859402,116870.0,116860.0,1.2522938]
[1754754727550,0.53759402,116870.0,116860.0,1.2512938]
[1754754727754,0.86974014,116870.0,116860.0,0.01635]
[1754754727952,0.89839402,116870.0,116860.0,0.81803]
[1754754728153,0.89839402,116870.0,116860.0,0.97203529]
[1754754728355,1.23054014,116870.0,116860.0,0.15500529]
[1754754728649,1.23054014,116870.0,116860.0,0.06993849]
[1754754728844,1.23054014,116870.0,116850.0,1.01910619]